fUSD/lending_fUSD_20250502
["ID","MTS","AMOUNT","RATE_DAILY","PERIOD"]
[359625260,1746191647088,-450.0,0.00019999,2]
[359625261,1746191647112,-450.0,0.00019999,2]
[359625262,1746191647137,-631.05,0.00019999,2]
[359625263,1746191647161,-450.0,0.00019999,2]
[359625264,1746191647189,-450.0,0.00019999,2]
[359625265,1746191647214,-710.93,0.00019999,2]
[359625266,1746191647240,-815.21,0.00019999,2]
[359625267,1746191647266,-450.0,0.00019999,2]
[359625268,1746191647291,-547.36,0.00019999,2]
[359625269,1746191647316,-450.0,0.00019999,2]
[359625270,1746191647342,-525.33,0.00019999,2]
[359625271,1746191647367,-450.0,0.00019999,2]
[359625272,1746191647393,-450.0,0.00019999,2]
[359625273,1746191647418,-450.0,0.00019999,2]
[359625274,1746191647443,-708.6,0.00019999,2]
[359625275,1746191647472,-450.0,0.00019999,2]
[359625276,1746191647502,-6265.69,0.00019999,2]
[359625277,1746191647529,-450.0,0.00019999,2]
[359625278,1746191647553,-450.0,0.00019999,2]
[359625279,1746191647579,-1043.79,0.00019999,2]
[359625280,1746191647604,-1201.07,0.00019999,2]
[359625281,1746191647631,-553.58,0.00019999,2]
[359625282,1746191647657,-698.05,0.00019999,2]
[359625283,1746191647682,-450.0,0.00019999,2]
[359625284,1746191647705,-450.0,0.00019999,2]
[359625285,1746191647732,-535.72,0.00019999,2]
[359625286,1746191647757,-6371.89,0.00019999,2]
[359625287,1746191647786,-9138.97,0.00019999,2]
[359625288,1746191647812,-450.0,0.00019999,2]
[359625289,1746191647837,-450.0,0.00019999,2]
[359625290,1746191647862,-450.0,0.00019999,2]
[359625291,1746191647887,-614.09,0.00019999,2]
[359625292,1746191647912,-6071.35,0.00019999,2]
[359625293,1746191647936,-465.68,0.00019999,2]
[359625294,1746191647960,-450.0,0.00019999,2]
[359625295,1746191647986,-623.98,0.00019999,2]
[359625296,1746191648010,-450.0,0.00019999,2]
[359625297,1746191648034,-450.0,0.00019999,2]
[359625298,1746191648058,-450.0,0.00019999,2]
[359625299,1746191648083,-537.43,0.00019999,2]
[359625300,1746191648107,-818.3,0.00019999,2]
[359625301,1746191648133,-166545.92,0.00019999,2]
[359625302,1746191648478,-450.0,0.00019999,2]
[359625303,1746191648506,-563.09,0.00019999,2]
[359625304,1746191648531,-450.0,0.00019999,2]
[359625305,1746191648558,-450.0,0.00019999,2]
[359625306,1746191648583,-450.0,0.00019999,2]
[359625307,1746191648608,-626.13,0.00019999,2]
[359625308,1746191648634,-855.12,0.00019999,2]
[359625309,1746191648658,-450.0,0.00019999,2]
[359625310,1746191648683,-641.78,0.00019999,2]
[359625311,1746191648708,-500.0,0.00019999,2]
[359625312,1746191648735,-500.0,0.00019999,2]
[359625313,1746191648760,-180.25309583,0.00019999,2]
[359625314,1746191648786,-960.0,0.00019999,2]
[359625315,1746191648812,-368793.52168938,0.0002,2]
[359625332,1746191683212,-293.71801786,0.0001939,2]
[359625333,1746191688111,-163.4923076,0.0001939,2]
[359625336,1746191693171,-163.86,0.00019335,2]
[359625337,1746191697772,-300.0,0.00019335,2]
[359625338,1746191705165,-36.14,0.00019335,2]
[359625339,1746191705187,-163.86,0.0001939,2]
[359625340,1746191710422,-369.43908333,0.0001939,2]
[359625342,1746191884468,17854.02,0.00019143,2]
[359625346,1746192183676,250.0,0.00019217,7]
[359625347,1746192209854,-8300.0,0.0002,4]
[359625348,1746192209876,-96925.98471893,0.0002,4]
[359625349,1746192209901,-2000.0,0.0002,4]
[359625350,1746192210401,164.67,0.00018946,2]
[359625352,1746192241086,250.0,0.00017,2]
[359625353,1746192242166,300.0,0.00019,2]
[359625354,1746192275891,-9.49059121,0.0001939,2]
[359625355,1746192275912,-250.0,0.00019531,2]
[359625356,1746192275931,-1050.1755,0.00019671,2]
[359625357,1746192275953,-1161.2489,0.00019673,2]
[359625358,1746192275974,-1620.7313,0.00019675,2]
[359625359,1746192275994,-2000.0,0.00019675,2]
[359625360,1746192276022,-2322.71620652,0.00019771,2]
[359625361,1746192276046,-2322.71620652,0.00019771,2]
[359625362,1746192276070,-2322.71620652,0.00019771,2]
[359625363,1746192276094,-2322.71620652,0.00019771,2]
[359625364,1746192276117,-2322.71620652,0.00019771,2]
[359625365,1746192276143,-2322.71620652,0.00019771,2]
[359625366,1746192276166,-2322.71620652,0.00019771,2]
[359625367,1746192276191,-2322.71620652,0.00019771,2]
[359625368,1746192276215,-2322.71620652,0.00019771,2]
[359625369,1746192276243,-2322.71620652,0.00019771,2]
[359625370,1746192276269,-2322.71620652,0.00019771,2]
[359625371,1746192276293,-2322.71620652,0.00019771,2]
[359625372,1746192276317,-2322.71620652,0.00019771,2]
[359625373,1746192276342,-2322.71620652,0.00019771,2]
[359625374,1746192276369,-2322.71620652,0.00019771,2]
[359625375,1746192276394,-2322.71620652,0.00019771,2]
[359625376,1746192276419,-2322.71620652,0.00019771,2]
[359625377,1746192276445,-2263.87406262,0.00019771,2]
[359625378,1746192276470,-2263.87406262,0.00019771,2]
[359625379,1746192276495,-2263.87406262,0.00019771,2]
[359625380,1746192276520,-2263.87406262,0.00019771,2]
[359625381,1746192276548,-2263.87406262,0.00019771,2]
[359625382,1746192276573,-2263.87406262,0.00019771,2]
[359625383,1746192276597,-2263.87406262,0.00019771,2]
[359625384,1746192276622,-2263.87406262,0.00019771,2]
[359625385,1746192276648,-2263.87406262,0.00019771,2]
[359625386,1746192276676,-2263.87406262,0.00019771,2]
[359625387,1746192276706,-2263.87406262,0.00019771,2]
[359625388,1746192276731,-2263.87406262,0.00019771,2]
[359625389,1746192276758,-2263.87406262,0.00019771,2]
[359625390,1746192276783,-2263.87406262,0.00019771,2]
[359625391,1746192276807,-2263.87406262,0.00019771,2]
[359625392,1746192276832,-2263.87406262,0.00019771,2]
[359625393,1746192276857,-2263.87406262,0.00019771,2]
[359625394,1746192276883,-2263.87406262,0.00019771,2]
[359625395,1746192276908,-2263.87406262,0.00019771,2]
[359625396,1746192276934,-2263.87406262,0.00019771,2]
[359625397,1746192276958,-2263.87406262,0.00019771,2]
[359625398,1746192276983,-2263.87406262,0.00019771,2]
[359625399,1746192277008,-2263.87406262,0.00019771,2]
[359625400,1746192277035,-2263.87406258,0.00019771,2]
[359625401,1746192277063,-2263.87406258,0.00019771,2]
[359625402,1746192277087,-1200.0,0.00019772,2]
[359625403,1746192277110,-300.0,0.00019772,2]
[359625404,1746192277132,-480.62,0.00019774,2]
[359625405,1746192277154,-450.0,0.00019774,2]
[359625406,1746192277177,-450.0,0.00019774,2]
[359625407,1746192277199,-659.33,0.00019774,2]
[359625408,1746192277220,-450.0,0.00019774,2]
[359625409,1746192277244,-450.0,0.00019774,2]
[359625410,1746192277265,-534.98,0.00019774,2]
[359625411,1746192277285,-450.0,0.00019774,2]
[359625412,1746192277307,-807.12,0.00019774,2]
[359625413,1746192277328,-553.44,0.00019774,2]
[359625414,1746192277350,-500.0,0.00019774,2]
[359625415,1746192277372,-326.17716708,0.00019774,2]
[359625416,1746192277407,-450.0,0.00019775,2]
[359625417,1746192277433,-554.69,0.00019775,2]
[359625418,1746192277455,-450.0,0.00019775,2]
[359625419,1746192277476,-450.0,0.00019775,2]
[359625420,1746192277498,-450.0,0.00019775,2]
[359625421,1746192277521,-555.61622303,0.00019775,2]
[359625422,1746192277542,-768.89,0.00019775,2]
[359625423,1746192277564,-450.0,0.00019775,2]
[359625424,1746192277587,-450.0,0.00019775,2]
[359625425,1746192277608,-450.0,0.00019775,2]
[359625426,1746192277630,-450.0,0.00019775,2]
[359625427,1746192277653,-450.0,0.00019775,2]
[359625428,1746192277678,-1094.83,0.00019775,2]
[359625429,1746192277699,-450.0,0.00019775,2]
[359625430,1746192277722,-625.75,0.00019775,2]
[359625431,1746192277743,-178.98702398,0.00019775,2]
[359625432,1746192277765,-752.06,0.00019775,2]
[359625433,1746192277787,-450.0,0.00019775,2]
[359625434,1746192277809,-450.0,0.00019775,2]
[359625435,1746192277830,-450.0,0.00019775,2]
[359625436,1746192277852,-450.0,0.00019775,2]
[359625437,1746192277874,-531.7,0.00019775,2]
[359625438,1746192277900,-450.0,0.00019775,2]
[359625439,1746192277922,-450.0,0.00019775,2]
[359625440,1746192277946,-503.68,0.00019775,2]
[359625441,1746192277969,-450.0,0.00019775,2]
[359625442,1746192277991,-450.0,0.00019775,2]
[359625443,1746192278013,-450.0,0.00019775,2]
[359625444,1746192278037,-450.0,0.00019775,2]
[359625445,1746192278058,-450.0,0.00019775,2]
[359625446,1746192278080,-450.0,0.00019775,2]
[359625447,1746192278102,-450.0,0.00019775,2]
[359625448,1746192278124,-265.85111734,0.00019775,2]
[359625449,1746192278147,-450.0,0.00019775,2]
[359625450,1746192278169,-450.0,0.00019775,2]
[359625451,1746192278190,-450.0,0.00019775,2]
[359625452,1746192278216,-464.28,0.00019775,2]
[359625453,1746192278238,-450.0,0.00019775,2]
[359625454,1746192278267,-670.76,0.00019775,2]
[359625455,1746192278289,-450.0,0.00019775,2]
[359625456,1746192278310,-450.0,0.00019775,2]
[359625457,1746192278332,-450.0,0.00019775,2]
[359625458,1746192278353,-525.85012105,0.00019775,2]
[359625459,1746192278375,-450.0,0.00019775,2]
[359625460,1746192278400,-450.0,0.00019775,2]
[359625461,1746192278423,-450.0,0.00019775,2]
[359625462,1746192278446,-450.0,0.00019775,2]
[359625463,1746192278468,-450.0,0.00019775,2]
[359625464,1746192278491,-450.0,0.00019775,2]
[359625465,1746192278512,-664.32,0.00019775,2]
[359625466,1746192278536,-487.15,0.00019775,2]
[359625467,1746192278559,-450.0,0.00019775,2]
[359625468,1746192278581,-450.0,0.00019775,2]
[359625469,1746192278603,-450.0,0.00019775,2]
[359625470,1746192278624,-450.0,0.00019775,2]
[359625471,1746192278646,-450.0,0.00019775,2]
[359625472,1746192278669,-450.0,0.00019775,2]
[359625473,1746192278696,-450.0,0.00019775,2]
[359625474,1746192278717,-450.0,0.00019775,2]
[359625475,1746192278738,-450.0,0.00019775,2]
[359625476,1746192278760,-522.21,0.00019775,2]
[359625477,1746192278782,-450.0,0.00019775,2]
[359625478,1746192278803,-450.0,0.00019775,2]
[359625479,1746192278824,-462.79,0.00019775,2]
[359625480,1746192278845,-450.0,0.00019775,2]
[359625481,1746192278866,-450.0,0.00019775,2]
[359625482,1746192278887,-450.0,0.00019775,2]
[359625483,1746192278908,-450.0,0.00019775,2]
[359625484,1746192278930,-450.0,0.00019775,2]
[359625485,1746192278952,-682.65,0.00019775,2]
[359625486,1746192278974,-1395.16,0.00019775,2]
[359625487,1746192278997,-450.0,0.00019775,2]
[359625488,1746192279020,-466.12822796,0.00019775,2]
[359625489,1746192279042,-450.0,0.00019775,2]
[359625490,1746192279064,-450.0,0.00019775,2]
[359625491,1746192279085,-667.25,0.00019775,2]
[359625492,1746192279107,-450.0,0.00019775,2]
[359625493,1746192279128,-450.0,0.00019775,2]
[359625494,1746192279408,-477.68,0.00019775,2]
[359625495,1746192279430,-533.67,0.00019775,2]
[359625496,1746192279455,-450.0,0.00019775,2]
[359625497,1746192279477,-730.78,0.00019775,2]
[359625498,1746192279497,-450.0,0.00019775,2]
[359625499,1746192279518,-450.0,0.00019775,2]
[359625500,1746192279539,-450.0,0.00019775,2]
[359625501,1746192279560,-599.96,0.00019775,2]
[359625502,1746192279580,-450.0,0.00019775,2]
[359625503,1746192279602,-708.77,0.00019775,2]
[359625504,1746192279622,-450.0,0.00019775,2]
[359625505,1746192279643,-564.82,0.00019775,2]
[359625506,1746192279664,-616.23,0.00019775,2]
[359625507,1746192279688,-450.0,0.00019775,2]
[359625508,1746192279709,-668.22,0.00019775,2]
[359625509,1746192279731,-450.0,0.00019775,2]
[359625510,1746192279752,-723.2,0.00019775,2]
[359625511,1746192279774,-450.0,0.00019775,2]
[359625512,1746192279795,-457.32,0.00019775,2]
[359625513,1746192279815,-656.05,0.00019775,2]
[359625514,1746192279836,-450.0,0.00019775,2]
[359625515,1746192279856,-450.0,0.00019775,2]
[359625516,1746192279877,-450.0,0.00019775,2]
[359625517,1746192279897,-450.0,0.00019775,2]
[359625518,1746192279917,-450.0,0.00019775,2]
[359625519,1746192279938,-517.08,0.00019775,2]
[359625520,1746192279960,-450.0,0.00019775,2]
[359625521,1746192279982,-925.62,0.00019775,2]
[359625522,1746192280004,-684.22,0.00019775,2]
[359625523,1746192280026,-632.19,0.00019775,2]
[359625524,1746192280049,-505.61,0.00019775,2]
[359625525,1746192280069,-450.0,0.00019775,2]
[359625526,1746192280091,-450.0,0.00019775,2]
[359625527,1746192280114,-719.76,0.00019775,2]
[359625528,1746192280136,-450.0,0.00019775,2]
[359625529,1746192280158,-602.91,0.00019775,2]
[359625530,1746192280179,-450.0,0.00019775,2]
[359625531,1746192280200,-2125.0,0.00019775,2]
[359625532,1746192280223,-554.58,0.00019775,2]
[359625533,1746192280244,-450.0,0.00019775,2]
[359625534,1746192280267,-471.28589695,0.00019775,2]
[359625535,1746192280289,-762.96,0.00019775,2]
[359625536,1746192280310,-615.2,0.00019775,2]
[359625537,1746192280332,-450.0,0.00019775,2]
[359625538,1746192280353,-583.34487204,0.00019775,2]
[359625539,1746192280373,-584.1,0.00019775,2]
[359625540,1746192280394,-450.0,0.00019775,2]
[359625541,1746192280414,-141946.4959831,0.00019775,2]
[359625542,1746192412109,200.0,0.00018911,2]
[359625545,1746192476165,992.65,0.00016989,2]
[359625546,1746192476383,992.65,0.00019253,2]
[359625547,1746192476828,156670.33100402,0.0002,4]
[359625548,1746192482737,184.72,0.00018896,2]
[359625549,1746192482977,184.72,0.0001899,2]
[359625555,1746192548910,637.3993509,0.00019291,2]
[359625567,1746192631833,-518.23066378,0.00019472,2]
[359625591,1746192634226,-119.16868712,0.00019472,2]
[359625592,1746192634236,-300.0,0.00019674,2]
[359625593,1746192634246,-1200.0,0.00019674,2]
[359625594,1746192634255,-56.73206709,0.00019674,2]
[359625595,1746192637781,-243.26793291,0.00019674,2]
[359625596,1746192637791,-682.24847281,0.00019675,2]
[359625597,1746192637802,-200.0,0.00019675,2]
[359625598,1746192637814,-5773.40759428,0.00019675,2]
[359625599,1746192637896,-976.98802937,0.00019675,2]
[359625600,1746192637907,-3110.01716113,0.00019675,2]
[359625601,1746192637918,-2048.003565,0.00019675,2]
[359625602,1746192637929,-4059.62035122,0.00019675,2]
[359625603,1746192637940,-3158.92017496,0.00019675,2]
[359625604,1746192637951,-4184.156181,0.00019675,2]
[359625605,1746192637962,-1121.70137876,0.00019675,2]
[359625608,1746192639840,-11800.66726428,0.00019675,2]
[359625609,1746192639851,-200.0,0.00019732,2]
[359625610,1746192639861,-500.0,0.00019768,2]
[359625611,1746192639871,-500.0,0.00019768,2]
[359625612,1746192639881,-500.0,0.00019768,2]
[359625613,1746192639891,-500.0,0.00019768,2]
[359625614,1746192639900,-500.0,0.00019768,2]
[359625615,1746192639910,-500.0,0.00019768,2]
[359625616,1746192639919,-500.0,0.00019768,2]
[359625617,1746192639931,-500.0,0.00019768,2]
[359625618,1746192639940,-500.0,0.00019768,2]
[359625619,1746192639950,-500.0,0.00019768,2]
[359625620,1746192639959,-500.0,0.00019768,2]
[359625621,1746192639969,-500.0,0.00019768,2]
[359625622,1746192639979,-500.0,0.00019768,2]
[359625623,1746192639988,-500.0,0.00019768,2]
[359625624,1746192639998,-500.0,0.00019768,2]
[359625625,1746192640008,-500.0,0.00019768,2]
[359625626,1746192640017,-500.0,0.00019768,2]
[359625627,1746192640027,-500.0,0.00019768,2]
[359625628,1746192640036,-500.0,0.00019768,2]
[359625629,1746192640046,-500.0,0.00019768,2]
[359625630,1746192640055,-500.0,0.00019768,2]
[359625631,1746192640064,-500.0,0.00019768,2]
[359625632,1746192640074,-500.0,0.00019768,2]
[359625633,1746192640083,-500.0,0.00019768,2]
[359625634,1746192640093,-500.0,0.00019768,2]
[359625635,1746192640103,-500.0,0.00019768,2]
[359625636,1746192640113,-571.19259555,0.00019768,2]
[359625637,1746192640122,-500.0,0.00019768,2]
[359625638,1746192640133,-500.0,0.00019768,2]
[359625639,1746192640142,-751.12582061,0.00019768,2]
[359625640,1746192640152,-751.12582061,0.00019768,2]
[359625641,1746192640161,-751.12582061,0.00019768,2]
[359625642,1746192640169,-751.12582061,0.00019768,2]
[359625643,1746192640179,-751.12582061,0.00019768,2]
[359625644,1746192640188,-751.12582061,0.00019768,2]
[359625645,1746192640197,-751.12582061,0.00019768,2]
[359625646,1746192640206,-751.12582061,0.00019768,2]
[359625647,1746192640215,-751.12582061,0.00019768,2]
[359625648,1746192640225,-751.12582061,0.00019768,2]
[359625649,1746192640234,-751.12582061,0.00019768,2]
[359625650,1746192640244,-751.12582061,0.00019768,2]
[359625651,1746192640253,-751.12582061,0.00019768,2]
[359625653,1746192640497,-751.12582061,0.00019768,2]
[359625654,1746192640507,-751.12582061,0.00019768,2]
[359625655,1746192640516,-751.12582061,0.00019768,2]
[359625656,1746192640526,-751.12582061,0.00019768,2]
[359625657,1746192640535,-751.12582061,0.00019768,2]
[359625658,1746192640544,-751.12582061,0.00019768,2]
[359625659,1746192640554,-751.12582061,0.00019768,2]
[359625660,1746192640564,-751.12582061,0.00019768,2]
[359625661,1746192640573,-751.12582061,0.00019768,2]
[359625662,1746192640583,-751.12582061,0.00019768,2]
[359625663,1746192640593,-751.12582061,0.00019768,2]
[359625664,1746192640602,-751.12582061,0.00019768,2]
[359625665,1746192640612,-751.12582061,0.00019768,2]
[359625666,1746192640622,-751.12582061,0.00019768,2]
[359625667,1746192640631,-751.12582061,0.00019768,2]
[359625668,1746192640641,-751.12582061,0.00019768,2]
[359625669,1746192640650,-751.12582061,0.00019768,2]
[359625670,1746192640659,-751.12582061,0.00019768,2]
[359625671,1746192640668,-751.12582061,0.00019768,2]
[359625672,1746192640678,-751.12582061,0.00019768,2]
[359625673,1746192640687,-751.12582061,0.00019768,2]
[359625674,1746192640697,-751.12582061,0.00019768,2]
[359625675,1746192640707,-751.12582061,0.00019768,2]
[359625676,1746192640716,-751.12582061,0.00019768,2]
[359625677,1746192640728,-751.12582061,0.00019768,2]
[359625678,1746192640737,-740.39545174,0.00019768,2]
[359625679,1746192640747,-740.39545174,0.00019768,2]
[359625680,1746192640756,-740.39545174,0.00019768,2]
[359625681,1746192640766,-740.39545174,0.00019768,2]
[359625682,1746192640776,-740.39545174,0.00019768,2]
[359625683,1746192640786,-740.39545174,0.00019768,2]
[359625684,1746192640795,-740.39545174,0.00019768,2]
[359625685,1746192640805,-740.39545174,0.00019768,2]
[359625686,1746192640817,-740.39545174,0.00019768,2]
[359625687,1746192640826,-740.39545174,0.00019768,2]
[359625688,1746192640835,-740.39545174,0.00019768,2]
[359625689,1746192640846,-740.39545174,0.00019768,2]
[359625690,1746192640856,-740.39545174,0.00019768,2]
[359625691,1746192640865,-740.39545174,0.00019768,2]
[359625692,1746192640875,-740.39545174,0.00019768,2]
[359625693,1746192640885,-740.39545174,0.00019768,2]
[359625694,1746192640895,-740.39545174,0.00019768,2]
[359625695,1746192640904,-740.39545174,0.00019768,2]
[359625696,1746192640913,-740.39545174,0.00019768,2]
[359625697,1746192640922,-740.39545174,0.00019768,2]
[359625698,1746192640932,-740.39545174,0.00019768,2]
[359625699,1746192640941,-1000.0,0.00019774,2]
[359625700,1746192640951,-870.743717,0.00019774,2]
[359625701,1746192640960,-671.954655,0.00019774,2]
[359625702,1746192640970,-3146.67,0.00019774,2]
[359625703,1746192640980,-450.0,0.00019774,2]
[359625704,1746192640989,-585.3,0.00019774,2]
[359625705,1746192640999,-450.0,0.00019774,2]
[359625706,1746192641008,-450.0,0.00019774,2]
[359625707,1746192641018,-450.0,0.00019774,2]
[359625708,1746192641027,-450.0,0.00019774,2]
[359625709,1746192641036,-450.0,0.00019774,2]
[359625710,1746192641046,-13639.45,0.00019774,2]
[359625711,1746192641055,-1394.48,0.00019774,2]
[359625712,1746192641065,-450.0,0.00019774,2]
[359625713,1746192641075,-645.39,0.00019774,2]
[359625714,1746192641085,-450.0,0.00019774,2]
[359625715,1746192641096,-450.0,0.00019774,2]
[359625716,1746192641106,-450.0,0.00019774,2]
[359625717,1746192641115,-450.0,0.00019774,2]
[359625718,1746192641126,-450.0,0.00019774,2]
[359625719,1746192641136,-460.59,0.00019774,2]
[359625720,1746192641146,-773.49,0.00019774,2]
[359625721,1746192641155,-631.86,0.00019774,2]
[359625722,1746192641165,-450.0,0.00019774,2]
[359625723,1746192641175,-488.87,0.00019774,2]
[359625724,1746192641186,-512.69,0.00019774,2]
[359625725,1746192641196,-976.88,0.00019774,2]
[359625726,1746192641205,-816.69,0.00019774,2]
[359625727,1746192641215,-515.55,0.00019774,2]
[359625728,1746192641225,-530.38,0.00019774,2]
[359625729,1746192641234,-450.0,0.00019774,2]
[359625730,1746192641243,-450.0,0.00019774,2]
[359625731,1746192641253,-450.0,0.00019774,2]
[359625732,1746192641262,-450.0,0.00019774,2]
[359625733,1746192641271,-450.0,0.00019774,2]
[359625734,1746192641280,-739.19,0.00019774,2]
[359625735,1746192641290,-881.13,0.00019774,2]
[359625736,1746192641299,-515.03,0.00019774,2]
[359625737,1746192641308,-450.0,0.00019774,2]
[359625738,1746192641317,-1828.46,0.00019774,2]
[359625739,1746192641326,-615.04,0.00019774,2]
[359625740,1746192641335,-8881.7,0.00019774,2]
[359625741,1746192641346,-467.83,0.00019774,2]
[359625742,1746192641355,-450.0,0.00019774,2]
[359625743,1746192641364,-503.62,0.00019774,2]
[359625744,1746192641373,-450.0,0.00019774,2]
[359625745,1746192641382,-2003.76,0.00019774,2]
[359625746,1746192641391,-766.84,0.00019774,2]
[359625747,1746192641401,-450.0,0.00019774,2]
[359625748,1746192641410,-450.0,0.00019774,2]
[359625749,1746192641419,-450.0,0.00019774,2]
[359625750,1746192641428,-793.67,0.00019774,2]
[359625751,1746192641437,-188.79780391,0.00019774,2]
[359625752,1746192641446,-450.0,0.00019774,2]
[359625753,1746192641455,-469.5,0.00019774,2]
[359625754,1746192641464,-1112.7,0.00019774,2]
[359625755,1746192641474,-450.0,0.00019774,2]
[359625756,1746192641483,-450.0,0.00019774,2]
[359625757,1746192641492,-450.0,0.00019774,2]
[359625758,1746192641502,-450.0,0.00019774,2]
[359625759,1746192641511,-450.0,0.00019774,2]
[359625760,1746192641522,-516.56880294,0.00019775,2]
[359625761,1746192641531,-992.6,0.00019775,2]
[359625762,1746192641541,-450.0,0.00019775,2]
[359625763,1746192641551,-468.13,0.00019775,2]
[359625764,1746192641561,-450.0,0.00019775,2]
[359625765,1746192641571,-450.0,0.00019775,2]
[359625766,1746192641581,-450.0,0.00019775,2]
[359625767,1746192641592,-450.0,0.00019775,2]
[359625768,1746192641602,-450.0,0.00019775,2]
[359625769,1746192641612,-450.0,0.00019775,2]
[359625770,1746192641622,-759.26,0.00019775,2]
[359625771,1746192641632,-712.22,0.00019775,2]
[359625772,1746192641641,-450.0,0.00019775,2]
[359625773,1746192641651,-450.0,0.00019775,2]
[359625774,1746192641661,-604.9,0.00019775,2]
[359625775,1746192641670,-581.38,0.00019775,2]
[359625776,1746192641680,-292.14118514,0.00019775,2]
[359625777,1746192641690,-450.0,0.00019775,2]
[359625778,1746192641699,-590.37976256,0.00019775,2]
[359625779,1746192641709,-1303.35,0.00019775,2]
[359625780,1746192641719,-920.38,0.00019775,2]
[359625781,1746192641728,-450.0,0.00019775,2]
[359625782,1746192641738,-450.0,0.00019775,2]
[359625783,1746192641748,-450.0,0.00019775,2]
[359625784,1746192641758,-450.0,0.00019775,2]
[359625785,1746192641767,-450.0,0.00019775,2]
[359625786,1746192641777,-450.0,0.00019775,2]
[359625787,1746192641787,-450.0,0.00019775,2]
[359625788,1746192641797,-450.0,0.00019775,2]
[359625789,1746192641808,-450.0,0.00019775,2]
[359625790,1746192641817,-593.72,0.00019775,2]
[359625791,1746192641828,-450.0,0.00019775,2]
[359625792,1746192641837,-450.0,0.00019775,2]
[359625793,1746192641847,-700.74,0.00019775,2]
[359625794,1746192641858,-709.89,0.00019775,2]
[359625795,1746192641867,-450.0,0.00019775,2]
[359625796,1746192641876,-450.0,0.00019775,2]
[359625797,1746192641887,-564.11,0.00019775,2]
[359625798,1746192641896,-450.0,0.00019775,2]
[359625799,1746192641906,-450.0,0.00019775,2]
[359625800,1746192641915,-980.82,0.00019775,2]
[359625801,1746192641925,-450.0,0.00019775,2]
[359625802,1746192641934,-726.7,0.00019775,2]
[359625803,1746192641943,-450.0,0.00019775,2]
[359625804,1746192641953,-466.52,0.00019775,2]
[359625805,1746192641962,-450.0,0.00019775,2]
[359625806,1746192641972,-450.0,0.00019775,2]
[359625807,1746192641981,-450.0,0.00019775,2]
[359625808,1746192641990,-450.0,0.00019775,2]
[359625809,1746192642000,-574.43,0.00019775,2]
[359625810,1746192642009,-450.0,0.00019775,2]
[359625811,1746192642019,-450.0,0.00019775,2]
[359625812,1746192642028,-450.0,0.00019775,2]
[359625813,1746192642038,-486.13792867,0.00019775,2]
[359625814,1746192642047,-450.0,0.00019775,2]
[359625815,1746192642057,-450.0,0.00019775,2]
[359625816,1746192642067,-450.0,0.00019775,2]
[359625817,1746192642077,-450.0,0.00019775,2]
[359625818,1746192642087,-450.0,0.00019775,2]
[359625819,1746192642100,-546.24213029,0.00019775,2]
[359625820,1746192642110,-450.0,0.00019775,2]
[359625821,1746192642119,-450.0,0.00019775,2]
[359625822,1746192642128,-450.0,0.00019775,2]
[359625823,1746192642139,-450.0,0.00019775,2]
[359625824,1746192642148,-669.22,0.00019775,2]
[359625825,1746192642158,-450.0,0.00019775,2]
[359625826,1746192642167,-450.0,0.00019775,2]